fUST/lending_fUST_20250502
["ID","MTS","AMOUNT","RATE_DAILY","PERIOD"]
[359601057,1746177043379,-400.0,0.00019178,2]
[359601058,1746177043388,-503.39554618,0.00019178,2]
[359601059,1746177043398,-511.78200325,0.00019178,2]
[359601060,1746177043407,-400.0,0.00019178,2]
[359601061,1746177043416,-211.7630948,0.00019178,2]
[359601062,1746177043426,-400.0,0.00019178,2]
[359601063,1746177043435,-400.0,0.00019178,2]
[359601064,1746177043445,-565.6,0.00019178,2]
[359601065,1746177043454,-646.8,0.00019178,2]
[359601066,1746177043463,-400.0,0.00019178,2]
[359601067,1746177043475,-400.0,0.00019178,2]
[359601068,1746177043484,-400.0,0.00019178,2]
[359601069,1746177043493,-403.55248492,0.00019178,2]
[359601070,1746177043503,-400.0,0.00019178,2]
[359601071,1746177043512,-400.0,0.00019178,2]
[359601072,1746177043522,-400.0,0.00019178,2]
[359601073,1746177043532,-400.0,0.00019178,2]
[359601074,1746177043541,-400.0,0.00019178,2]
[359601075,1746177043551,-400.0,0.00019178,2]
[359601076,1746177043560,-400.0,0.00019178,2]
[359601077,1746177043569,-400.0,0.00019178,2]
[359601078,1746177043578,-520.82467142,0.00019178,2]
[359601079,1746177043587,-400.0,0.00019178,2]
[359601080,1746177043596,-400.0,0.00019178,2]
[359601081,1746177043606,-400.0,0.00019178,2]
[359601082,1746177043615,-400.0,0.00019178,2]
[359601083,1746177043624,-400.0,0.00019178,2]
[359601084,1746177043634,-400.0,0.00019178,2]
[359601085,1746177043643,-400.0,0.00019178,2]
[359601086,1746177043652,-400.0,0.00019178,2]
[359601087,1746177043661,-224.60258855,0.00019178,2]
[359601088,1746177043670,-553.6,0.00019178,2]
[359601089,1746177043679,-400.0,0.00019178,2]
[359601090,1746177043689,-400.0,0.00019178,2]
[359601091,1746177043699,-400.0,0.00019178,2]
[359601092,1746177043708,-400.0,0.00019178,2]
[359601093,1746177043717,-400.0,0.00019178,2]
[359601094,1746177043726,-753.7,0.00019178,2]
[359601095,1746177043737,-400.0,0.00019178,2]
[359601096,1746177043747,-500.0,0.00019178,2]
[359601097,1746177043758,-400.0,0.00019178,2]
[359601098,1746177043767,-479.16,0.00019178,2]
[359601099,1746177043776,-405.8,0.00019178,2]
[359601100,1746177043785,-778.5,0.00019178,2]
[359601101,1746177043794,-628.75,0.00019178,2]
[359601102,1746177043803,-400.0,0.00019178,2]
[359601103,1746177043812,-505.32892405,0.00019178,2]
[359601104,1746177043821,-519.7314077,0.00019178,2]
[359601105,1746177043831,-400.0,0.00019178,2]
[359601106,1746177043840,-400.0,0.00019178,2]
[359601107,1746177043849,-400.0,0.00019178,2]
[359601108,1746177043858,-400.0,0.00019178,2]
[359601109,1746177043868,-1225.27,0.00019178,2]
[359601110,1746177043877,-400.0,0.00019178,2]
[359601111,1746177043886,-468.91,0.00019178,2]
[359601112,1746177043895,-316.44907941,0.00019178,2]
[359601113,1746177043905,-400.0,0.00019178,2]
[359601114,1746177043914,-400.0,0.00019178,2]
[359601115,1746177043923,-1015.19,0.00019178,2]
[359601116,1746177043932,-400.0,0.00019178,2]
[359601117,1746177043941,-400.0,0.00019178,2]
[359601118,1746177043951,-400.0,0.00019178,2]
[359601119,1746177043960,-400.0,0.00019178,2]
[359601120,1746177043969,-400.0,0.00019178,2]
[359601121,1746177043979,-507.87009583,0.00019178,2]
[359601122,1746177043988,-400.0,0.00019178,2]
[359601123,1746177043997,-400.0,0.00019178,2]
[359601124,1746177044006,-400.0,0.00019178,2]
[359601125,1746177044016,-471.15,0.00019178,2]
[359601126,1746177044025,-400.0,0.00019178,2]
[359601127,1746177044035,-400.0,0.00019178,2]
[359601128,1746177044044,-400.0,0.00019178,2]
[359601129,1746177044053,-400.0,0.00019178,2]
[359601130,1746177044062,-854.55,0.00019178,2]
[359601131,1746177044073,-400.0,0.00019178,2]
[359601132,1746177044082,-400.0,0.00019178,2]
[359601133,1746177044091,-400.0,0.00019178,2]
[359601134,1746177044101,-749.8,0.00019178,2]
[359601135,1746177044110,-400.0,0.00019178,2]
[359601136,1746177044119,-400.0,0.00019178,2]
[359601137,1746177044129,-214.77151753,0.00019178,2]
[359601138,1746177044138,-358.71474307,0.00019178,2]
[359601139,1746177044148,-400.0,0.00019178,2]
[359601140,1746177044157,-813.93,0.00019178,2]
[359601141,1746177044167,-951.05,0.00019178,2]
[359601142,1746177044176,-400.0,0.00019178,2]
[359601143,1746177044187,-400.66,0.00019178,2]
[359601144,1746177044196,-400.0,0.00019178,2]
[359601145,1746177044206,-400.0,0.00019178,2]
[359601146,1746177044215,-400.0,0.00019178,2]
[359601147,1746177044225,-400.0,0.00019178,2]
[359601148,1746177044235,-400.0,0.00019178,2]
[359601149,1746177044244,-400.0,0.00019178,2]
[359601150,1746177044254,-400.0,0.00019178,2]
[359601151,1746177044263,-400.0,0.00019178,2]
[359601152,1746177044272,-400.0,0.00019178,2]
[359601153,1746177044282,-400.0,0.00019178,2]
[359601154,1746177044291,-6819.47,0.00019178,2]
[359601155,1746177044301,-1555.47,0.00019178,2]
[359601156,1746177044311,-400.0,0.00019178,2]
[359601157,1746177044320,-400.0,0.00019178,2]
[359601158,1746177044330,-400.0,0.00019178,2]
[359601159,1746177044341,-400.0,0.00019178,2]
[359601160,1746177044351,-400.0,0.00019178,2]
[359601161,1746177044362,-400.0,0.00019178,2]
[359601162,1746177044372,-400.0,0.00019178,2]
[359601163,1746177044382,-400.0,0.00019178,2]
[359601164,1746177044393,-400.0,0.00019178,2]
[359601165,1746177044403,-400.0,0.00019178,2]
[359601166,1746177044412,-400.0,0.00019178,2]
[359601167,1746177044422,-400.0,0.00019178,2]
[359601168,1746177044431,-8225.53,0.00019178,2]
[359601169,1746177044441,-400.0,0.00019178,2]
[359601170,1746177044451,-1559.04,0.00019178,2]
[359601171,1746177044461,-400.0,0.00019178,2]
[359601172,1746177044475,-400.0,0.00019178,2]
[359601173,1746177044484,-730.41,0.00019178,2]
[359601174,1746177044494,-400.0,0.00019178,2]
[359601175,1746177044503,-400.0,0.00019178,2]
[359601176,1746177044513,-7792.98,0.00019178,2]
[359601177,1746177044523,-400.0,0.00019178,2]
[359601178,1746177044533,-400.0,0.00019178,2]
[359601179,1746177044542,-400.0,0.00019178,2]
[359601180,1746177044552,-400.0,0.00019178,2]
[359601181,1746177044561,-1237.66,0.00019178,2]
[359601182,1746177044571,-400.0,0.00019178,2]
[359601183,1746177044580,-400.0,0.00019178,2]
[359601184,1746177044590,-400.0,0.00019178,2]
[359601185,1746177044599,-400.0,0.00019178,2]
[359601186,1746177044609,-400.0,0.00019178,2]
[359601187,1746177044618,-400.0,0.00019178,2]
[359601188,1746177044628,-400.0,0.00019178,2]
[359601189,1746177044638,-2192.65,0.00019178,2]
[359601190,1746177044648,-405.47,0.00019178,2]
[359601191,1746177044657,-686.03,0.00019178,2]
[359601194,1746177044667,-402.64069689,0.00019178,2]
[359601195,1746177044676,-400.0,0.00019178,2]
[359601197,1746177044686,-400.0,0.00019178,2]
[359601198,1746177044695,-400.0,0.00019178,2]
[359601199,1746177044707,-400.0,0.00019178,2]
[359601200,1746177044717,-367.66178091,0.00019178,2]
[359601201,1746177044726,-400.0,0.00019178,2]
[359601202,1746177044738,-400.0,0.00019178,2]
[359601203,1746177044747,-400.0,0.00019178,2]
[359601204,1746177044757,-400.0,0.00019178,2]
[359601205,1746177044767,-400.0,0.00019178,2]
[359601206,1746177044778,-893.18,0.00019178,2]
[359601207,1746177044788,-400.0,0.00019178,2]
[359601208,1746177044797,-400.0,0.00019178,2]
[359601209,1746177044806,-151.0,0.00019178,2]
[359601210,1746177044816,-151.0,0.00019178,2]
[359601211,1746177044825,-400.0,0.00019178,2]
[359601212,1746177044835,-868.49,0.00019178,2]
[359601213,1746177044845,-151.0,0.00019178,2]
[359601214,1746177044855,-197.28186,0.00019178,2]
[359601215,1746177044864,-2669.09,0.00019178,2]
[359601216,1746177044874,-400.0,0.00019178,2]
[359601217,1746177044884,-176.67863778,0.00019178,2]
[359601218,1746177044915,-223.32136222,0.00019178,2]
[359601219,1746177044924,-931.47,0.00019178,2]
[359601220,1746177044934,-400.0,0.00019178,2]
[359601221,1746177044944,-984.93,0.00019178,2]
[359601222,1746177044954,-400.0,0.00019178,2]
[359601223,1746177044964,-400.0,0.00019178,2]
[359601224,1746177044974,-400.0,0.00019178,2]
[359601225,1746177044984,-761.08,0.00019178,2]
[359601226,1746177044994,-870.75,0.00019178,2]
[359601227,1746177045004,-503.67622578,0.00019178,2]
[359601228,1746177045014,-400.0,0.00019178,2]
[359601229,1746177045023,-947.44,0.00019178,2]
[359601230,1746177045034,-500.78229294,0.00019178,2]
[359601231,1746177045044,-400.0,0.00019178,2]
[359601232,1746177045053,-400.0,0.00019178,2]
[359601233,1746177045063,-400.0,0.00019178,2]
[359601234,1746177045073,-504.12674102,0.00019178,2]
[359601235,1746177045083,-400.0,0.00019178,2]
[359601236,1746177045093,-494.31,0.00019178,2]
[359601237,1746177045103,-400.0,0.00019178,2]
[359601238,1746177045113,-402.9807165,0.00019178,2]
[359601239,1746177045123,-400.0,0.00019178,2]
[359601240,1746177045134,-512.50298481,0.00019178,2]
[359601241,1746177045144,-2289.23,0.00019178,2]
[359601242,1746177045155,-400.0,0.00019178,2]
[359601243,1746177045165,-400.0,0.00019178,2]
[359601244,1746177045175,-400.0,0.00019178,2]
[359601245,1746177045185,-400.0,0.00019178,2]
[359601246,1746177045195,-400.0,0.00019178,2]
[359601247,1746177045205,-400.0,0.00019178,2]
[359601248,1746177045215,-400.0,0.00019178,2]
[359601249,1746177045225,-400.0,0.00019178,2]
[359601250,1746177045235,-470.77,0.00019178,2]
[359601251,1746177045245,-400.0,0.00019178,2]
[359601252,1746177045255,-400.0,0.00019178,2]
[359601253,1746177045265,-400.0,0.00019178,2]
[359601254,1746177045275,-534.85,0.00019178,2]
[359601255,1746177045285,-2963.54,0.00019178,2]
[359601256,1746177045295,-854.08,0.00019178,2]
[359601257,1746177045306,-400.0,0.00019178,2]
[359601258,1746177045316,-400.0,0.00019178,2]
[359601259,1746177045325,-194.53134187,0.00019178,2]
[359601260,1746177045335,-168.91535676,0.00019178,2]
[359601261,1746177045345,-400.0,0.00019178,2]
[359601262,1746177045356,-400.0,0.00019178,2]
[359601263,1746177045368,-400.0,0.00019178,2]
[359601264,1746177045378,-151.0,0.00019178,2]
[359601265,1746177045388,-151.0,0.00019178,2]
[359601266,1746177045398,-400.0,0.00019178,2]
[359601267,1746177045408,-151.0,0.00019178,2]
[359601268,1746177045418,-221.533786,0.00019178,2]
[359601270,1746177045428,-3859.29,0.00019178,2]
[359601272,1746177045437,-400.0,0.00019178,2]
[359601274,1746177045448,-2055.06,0.00019178,2]
[359601276,1746177045457,-400.0,0.00019178,2]
[359601278,1746177045469,-400.0,0.00019178,2]
[359601280,1746177045480,-493.12472397,0.00019178,2]
[359601282,1746177045490,-6925.89,0.00019178,2]
[359601284,1746177045500,-400.0,0.00019178,2]
[359601286,1746177045511,-431.87,0.00019178,2]
[359601288,1746177045522,-400.0,0.00019178,2]
[359601290,1746177045532,-400.0,0.00019178,2]
[359601292,1746177045542,-402.77,0.00019178,2]
[359601293,1746177045553,-468.8,0.00019178,2]
[359601294,1746177045563,-1671.18,0.00019178,2]
[359601295,1746177045572,-400.0,0.00019178,2]
[359601296,1746177045581,-400.0,0.00019178,2]
[359601297,1746177045590,-1011.69,0.00019178,2]
[359601298,1746177045600,-400.0,0.00019178,2]
[359601299,1746177045609,-400.0,0.00019178,2]
[359601300,1746177045619,-410.78,0.00019178,2]
[359601301,1746177045629,-400.0,0.00019178,2]
[359601302,1746177045639,-400.0,0.00019178,2]
[359601303,1746177045648,-400.0,0.00019178,2]
[359601304,1746177045658,-403.03,0.00019178,2]
[359601305,1746177045667,-879.32,0.00019178,2]
[359601306,1746177045677,-400.0,0.00019178,2]
[359601307,1746177045686,-400.0,0.00019178,2]
[359601308,1746177045695,-400.0,0.00019178,2]
[359601309,1746177045705,-400.0,0.00019178,2]
[359601310,1746177045714,-400.0,0.00019178,2]
[359601311,1746177045724,-2863.92,0.00019178,2]
[359601312,1746177045734,-400.0,0.00019178,2]
[359601313,1746177045743,-489.55,0.00019178,2]
[359601314,1746177045753,-483.64,0.00019178,2]
[359601315,1746177045763,-3547.23,0.00019178,2]
[359601316,1746177045773,-400.0,0.00019178,2]
[359601317,1746177045783,-400.0,0.00019178,2]
[359601318,1746177045793,-501.02132946,0.00019178,2]
[359601319,1746177045803,-527.99977707,0.00019178,2]
[359601320,1746177045812,-400.0,0.00019178,2]
[359601321,1746177045823,-400.0,0.00019178,2]
[359601322,1746177045833,-942.13,0.00019178,2]
[359601323,1746177045843,-400.0,0.00019178,2]
[359601324,1746177045853,-400.0,0.00019178,2]
[359601325,1746177045863,-404.81,0.00019178,2]
[359601326,1746177045873,-400.0,0.00019178,2]
[359601327,1746177045884,-806.67,0.00019178,2]
[359601328,1746177045894,-516.39,0.00019178,2]
[359601329,1746177045905,-400.0,0.00019178,2]
[359601330,1746177045914,-400.0,0.00019178,2]
[359601331,1746177045926,-400.0,0.00019178,2]
[359601332,1746177045937,-400.0,0.00019178,2]
[359601333,1746177045948,-400.0,0.00019178,2]
[359601334,1746177045959,-400.0,0.00019178,2]
[359601335,1746177045970,-400.0,0.00019178,2]
[359601336,1746177045980,-857.09,0.00019178,2]
[359601337,1746177045990,-400.0,0.00019178,2]
[359601338,1746177046000,-400.0,0.00019178,2]
[359601339,1746177046010,-731.25,0.00019178,2]
[359601340,1746177046020,-400.0,0.00019178,2]
[359601341,1746177046030,-308.33925443,0.00019178,2]
[359601342,1746177046040,-500.0,0.00019178,2]
[359601343,1746177046050,-400.0,0.00019178,2]
[359601344,1746177046059,-300.0,0.00019178,2]
[359601345,1746177046069,-400.0,0.00019178,2]
[359601346,1746177046079,-504.44887394,0.00019178,2]
[359601347,1746177046089,-2935.79,0.00019178,2]
[359601348,1746177046099,-400.0,0.00019178,2]
[359601349,1746177046109,-151.0,0.00019178,2]
[359601350,1746177046119,-400.0,0.00019178,2]
[359601351,1746177046129,-400.0,0.00019178,2]
[359601352,1746177046139,-400.0,0.00019178,2]
[359601353,1746177046148,-500.0,0.00019178,2]
[359601354,1746177046158,-1221.87,0.00019178,2]
[359601355,1746177046168,-641.34,0.00019178,2]
[359601356,1746177046177,-400.0,0.00019178,2]
[359601358,1746177046187,-500.0,0.00019178,2]
[359601360,1746177046197,-500.0,0.00019178,2]
[359601361,1746177046206,-400.0,0.00019178,2]
[359601362,1746177046215,-400.0,0.00019178,2]
[359601363,1746177046225,-500.0,0.00019178,2]
[359601364,1746177046235,-400.0,0.00019178,2]
[359601365,1746177046245,-1176.0,0.00019178,2]
[359601366,1746177046255,-3303.56,0.00019178,2]
[359601367,1746177046264,-400.0,0.00019178,2]
[359601368,1746177046274,-400.0,0.00019178,2]
[359601369,1746177046284,-151.0,0.00019178,2]
[359601370,1746177046294,-151.0,0.00019178,2]
[359601371,1746177046304,-151.0,0.00019178,2]
[359601372,1746177046314,-400.0,0.00019178,2]
[359601373,1746177046323,-400.0,0.00019178,2]
[359601374,1746177046333,-151.0,0.00019178,2]
[359601375,1746177046343,-400.0,0.00019178,2]
[359601376,1746177046353,-151.0,0.00019178,2]
[359601377,1746177046363,-400.0,0.00019178,2]
[359601378,1746177046373,-698.46,0.00019178,2]
[359601379,1746177046384,-706.74,0.00019178,2]
[359601380,1746177046394,-151.0,0.00019178,2]
[359601381,1746177046404,-400.0,0.00019178,2]
[359601382,1746177046414,-500.0,0.00019178,2]
[359601383,1746177046424,-151.0,0.00019178,2]
[359601384,1746177046434,-204.17794374,0.00019178,2]
[359601385,1746177046444,-952.29,0.00019178,2]
[359601386,1746177046455,-400.0,0.00019178,2]
[359601387,1746177046466,-151.0,0.00019178,2]
[359601388,1746177046479,-151.0,0.00019178,2]
[359601389,1746177046488,-1802.09,0.00019178,2]
[359601390,1746177046498,-622.04,0.00019178,2]
[359601391,1746177046507,-458.80696555,0.00019178,2]
[359601392,1746177046518,-400.0,0.00019178,2]
[359601393,1746177046527,-400.0,0.00019178,2]
[359601394,1746177046538,-400.0,0.00019178,2]
[359601395,1746177046549,-1408.05,0.00019178,2]
[359601396,1746177046559,-151.0,0.00019178,2]
[359601397,1746177046570,-151.0,0.00019178,2]
[359601398,1746177046580,-500.0,0.00019178,2]
[359601399,1746177046590,-1785.81,0.00019178,2]
[359601400,1746177046600,-500.0,0.00019178,2]
[359601401,1746177046610,-400.0,0.00019178,2]
[359601402,1746177046619,-400.0,0.00019178,2]
[359601403,1746177046629,-1331.44,0.00019178,2]
[359601404,1746177046640,-400.0,0.00019178,2]
[359601405,1746177046650,-400.0,0.00019178,2]
[359601406,1746177046659,-1622.91,0.00019178,2]
[359601407,1746177046669,-400.0,0.00019178,2]
[359601408,1746177046679,-3381.46,0.00019178,2]
[359601409,1746177046688,-500.0,0.00019178,2]
[359601410,1746177046698,-151.0,0.00019178,2]
[359601411,1746177046708,-400.0,0.00019178,2]
[359601412,1746177046718,-1050.21,0.00019178,2]
[359601413,1746177046728,-500.0,0.00019178,2]
[359601414,1746177046738,-411.73703896,0.00019178,2]
[359601415,1746177046748,-400.0,0.00019178,2]
[359601416,1746177046758,-400.0,0.00019178,2]
[359601417,1746177046769,-500.0,0.00019178,2]
[359601418,1746177046779,-500.0,0.00019178,2]
[359601419,1746177046789,-400.0,0.00019178,2]
[359601420,1746177046799,-500.0,0.00019178,2]
[359601421,1746177046809,-500.0,0.00019178,2]
[359601422,1746177046820,-500.0,0.00019178,2]
[359601423,1746177046829,-500.0,0.00019178,2]
[359601424,1746177046839,-500.0,0.00019178,2]
[359601425,1746177047056,-576.09391912,0.00019178,2]
[359601426,1746177047066,-400.0,0.00019178,2]
[359601427,1746177047076,-400.0,0.00019178,2]
[359601428,1746177047085,-400.0,0.00019178,2]
[359601429,1746177047095,-400.0,0.00019178,2]
[359601430,1746177047105,-1271.77,0.00019178,2]
[359601431,1746177047114,-400.0,0.00019178,2]
[359601432,1746177047124,-993.43,0.00019178,2]
[359601433,1746177047133,-500.0,0.00019178,2]
[359601434,1746177047143,-3125.54,0.00019178,2]
[359601435,1746177047152,-500.0,0.00019178,2]
[359601436,1746177047162,-500.0,0.00019178,2]
[359601437,1746177047171,-400.0,0.00019178,2]
[359601438,1746177047181,-400.0,0.00019178,2]
[359601439,1746177047191,-573.21536085,0.00019178,2]
[359601440,1746177047200,-400.0,0.00019178,2]
[359601441,1746177047210,-400.0,0.00019178,2]
[359601442,1746177047221,-400.0,0.00019178,2]
[359601443,1746177047231,-832.17,0.00019178,2]
[359601444,1746177047241,-400.0,0.00019178,2]
[359601445,1746177047250,-400.0,0.00019178,2]
[359601446,1746177047259,-400.0,0.00019178,2]
[359601447,1746177047268,-334.5033319,0.00019178,2]
[359601448,1746177047287,-66.87273715,0.00019178,2]
[359601449,1746177047296,-400.0,0.00019178,2]
[359601450,1746177047305,-400.0,0.00019178,2]
[359601451,1746177047315,-1205.03,0.00019178,2]
[359601452,1746177047324,-62.02443575,0.00019178,2]
[359601453,1746177047337,-337.97556425,0.00019178,2]
[359601454,1746177047347,-400.0,0.00019178,2]
[359601455,1746177047356,-695.57,0.00019178,2]
[359601456,1746177047366,-400.0,0.00019178,2]
[359601457,1746177047376,-820.27,0.00019178,2]
[359601458,1746177047386,-400.0,0.00019178,2]
[359601459,1746177047396,-400.0,0.00019178,2]
[359601460,1746177047408,-400.0,0.00019178,2]
[359601461,1746177047417,-400.0,0.00019178,2]
[359601462,1746177047427,-400.0,0.00019178,2]
[359601463,1746177047437,-400.0,0.00019178,2]
[359601464,1746177047446,-400.0,0.00019178,2]
[359601465,1746177047455,-400.0,0.00019178,2]
[359601466,1746177047466,-500.0,0.00019178,2]
[359601467,1746177047478,-400.0,0.00019178,2]
[359601468,1746177047488,-2549.76,0.00019178,2]
[359601469,1746177047498,-2056.53,0.00019178,2]
[359601470,1746177047507,-400.0,0.00019178,2]
[359601471,1746177047517,-400.0,0.00019178,2]
[359601472,1746177047527,-400.0,0.00019178,2]
[359601473,1746177047536,-400.0,0.00019178,2]
[359601474,1746177047546,-586.32,0.00019178,2]
[359601475,1746177047554,-2245.55,0.00019178,2]
[359601476,1746177047563,-477.33390073,0.00019178,2]
[359601477,1746177047580,-568.81609927,0.00019178,2]
[359601478,1746177047589,-4933.3,0.00019178,2]
[359601479,1746177047599,-400.0,0.00019178,2]
[359601480,1746177047608,-400.0,0.00019178,2]
[359601481,1746177047617,-475.74,0.00019178,2]
[359601482,1746177047626,-501.72564845,0.00019178,2]
[359601483,1746177047636,-485.64,0.00019178,2]
[359601484,1746177047645,-400.0,0.00019178,2]
[359601485,1746177047656,-307.29784191,0.00019178,2]
[359601486,1746177047666,-400.0,0.00019178,2]
[359601487,1746177047676,-400.0,0.00019178,2]
[359601488,1746177047685,-400.0,0.00019178,2]
[359601489,1746177047694,-2515.03,0.00019178,2]
[359601490,1746177047703,-400.0,0.00019178,2]
[359601491,1746177047712,-400.0,0.00019178,2]
[359601492,1746177047722,-400.0,0.00019178,2]
[359601493,1746177047732,-400.0,0.00019178,2]
[359601494,1746177047741,-998.06,0.00019178,2]
[359601495,1746177047751,-400.0,0.00019178,2]
[359601496,1746177047760,-400.0,0.00019178,2]
[359601497,1746177047770,-400.0,0.00019178,2]
[359601498,1746177047780,-490.48,0.00019178,2]
[359601499,1746177047790,-400.0,0.00019178,2]
[359601500,1746177047799,-771.86,0.00019178,2]
[359601501,1746177047808,-400.0,0.00019178,2]
[359601502,1746177047817,-400.0,0.00019178,2]
[359601503,1746177047826,-400.0,0.00019178,2]
[359601504,1746177047836,-400.0,0.00019178,2]
[359601505,1746177047845,-417.96,0.00019178,2]
[359601506,1746177047854,-752.62,0.00019178,2]
[359601507,1746177047864,-400.0,0.00019178,2]
[359601508,1746177047874,-400.0,0.00019178,2]
[359601509,1746177047883,-504.72729183,0.00019178,2]
[359601510,1746177047893,-400.0,0.00019178,2]
[359601511,1746177047903,-6159.14,0.00019178,2]
[359601512,1746177047914,-6159.14,0.00019178,2]
[359601513,1746177047923,-6159.14,0.00019178,2]
[359601514,1746177047933,-400.0,0.00019178,2]
[359601515,1746177047942,-6159.14,0.00019178,2]
[359601516,1746177047952,-6159.14,0.00019178,2]
[359601517,1746177047962,-6159.14,0.00019178,2]
[359601518,1746177047971,-6159.14,0.00019178,2]
[359601519,1746177047981,-927.31917505,0.00019178,2]
[359601520,1746177047993,-2009.63376382,0.00019178,2]
[359601521,1746177048027,-3222.18706113,0.00019178,2]
[359601522,1746177048037,-400.0,0.00019178,2]
[359601523,1746177048047,-6159.14,0.00019178,2]
[359601524,1746177048057,-6159.14,0.00019178,2]
[359601525,1746177048066,-52.90705965,0.00019178,2]
[359601526,1746177048936,-452.30645123,0.00019178,2]
[359601527,1746177048946,-3189.4000448,0.00019178,2]
[359601528,1746177048958,-479.93791128,0.00019178,2]
[359601529,1746177049001,-2489.80204392,0.00019178,2]
[359601530,1746177049011,-400.0,0.00019178,2]
[359601531,1746177049020,-4545.61066065,0.00019178,2]
[359601532,1746177049388,-1613.52933935,0.00019178,2]
[359601533,1746177049398,-451.15044264,0.00019178,2]
[359601534,1746177049501,-5707.98955736,0.00019178,2]
[359601535,1746177049511,-6159.14,0.00019178,2]
[359601536,1746177049521,-6159.14,0.00019178,2]
[359601537,1746177049530,-400.0,0.00019178,2]
[359601538,1746177049540,-6159.14,0.00019178,2]
[359601539,1746177049550,-6159.14,0.00019178,2]
[359601540,1746177049559,-400.0,0.00019178,2]
[359601541,1746177049569,-6159.14,0.00019178,2]
[359601542,1746177049578,-5488.09225708,0.00019178,2]
[359601543,1746177049719,-671.04774292,0.00019178,2]
[359601544,1746177049729,-6159.14,0.00019178,2]
[359601545,1746177049739,-400.0,0.00019178,2]
[359601546,1746177049748,-6159.14,0.00019178,2]
[359601547,1746177049757,-400.0,0.00019178,2]
[359601548,1746177049767,-6159.14,0.00019178,2]
[359601549,1746177049776,-6159.14,0.00019178,2]
[359601550,1746177049786,-22294.25,0.00019178,2]
[359601551,1746177049795,-6159.14428341,0.00019178,2]
[359601552,1746177049804,-151.0,0.00019178,2]
[359601553,1746177049813,-498.85,0.00019178,2]
[359601554,1746177049822,-3404.49,0.00019178,2]
[359601555,1746177049832,-500.39436575,0.00019178,2]
[359601556,1746177049841,-151.0,0.00019178,2]
[359601557,1746177049850,-320.26642583,0.00019178,2]
[359601558,1746177049860,-400.0,0.00019178,2]
[359601559,1746177049869,-151.0,0.00019178,2]
[359601560,1746177049879,-233.803905,0.00019178,2]
[359601561,1746177049889,-400.0,0.00019178,2]
[359601562,1746177049899,-400.0,0.00019178,2]
[359601563,1746177049908,-400.0,0.00019178,2]
[359601564,1746177049917,-223.73923644,0.00019178,2]
[359601565,1746177049929,-205.26940849,0.00019178,2]
[359601566,1746177049939,-533.41,0.00019178,2]
[359601567,1746177049948,-400.0,0.00019178,2]
[359601568,1746177049957,-400.0,0.00019178,2]
[359601569,1746177049966,-400.0,0.00019178,2]
[359601570,1746177049975,-400.0,0.00019178,2]
[359601571,1746177049984,-400.0,0.00019178,2]
[359601572,1746177049994,-346.09827011,0.00019178,2]
[359601573,1746177050015,-53.90172989,0.00019178,2]